{"text_format":"1","workbook":"xlsx","n_sheets":1,"sheets":["Compte de résultat Relevé"],"not_rendered":{"charts":0,"images":0,"macros":0,"external_links":0,"defined_names":2,"comments":0,"pivot_tables":0},"unopened":[],"bounds":{"document_bytes":16777216,"sheet_cells":100000,"rows_first":2000,"rows_last":500,"rows_between":2000,"halvings":0,"cell_chars":16384,"cell_head_chars":4096},"cells_cut":0,"cells_raw":0,"read":"whole","date_system":"1900"}

{"sheet":"Compte de résultat Relevé","index":0,"n_rows":66,"n_cols":10,"rows_kept":66,"cut":false,"hidden":false,"merged":[[62,1,62,9],[10,1,10,9],[18,1,18,9],[27,1,27,9],[42,1,42,9],[48,1,48,9]]}
[null,"Compte de résultat Relevé"]
[]
[null,null,null,"PÉRIODE ANTÉRIEURE ","BUDGET ","PÉRIODE ACTUELLE ",null,"PÉRIODE ACTUELLE\nEN % DES VENTES ","VARIATION EN % PAR RAPPORT À PÉRIODE ANTÉRIEURE ","VARIATION EN % PAR RAPPORT AU BUDGET "]
[null,"Chiffre d’affaires"]
[]
[null,"Produit/service 1",null,40,50,45,null,{"$f":"IFERROR(Chiffred’affaires[[#This Row],[Période Actuelle ]]/SUBTOTAL(109,Chiffred’affaires[[Période Actuelle ]]),0)","v":1},{"$f":"IFERROR(Chiffred’affaires[[#This Row],[Période Actuelle ]]/Chiffred’affaires[[#This Row],[Période Antérieure ]]-1,0)","v":0.125},{"$f":"IFERROR(Chiffred’affaires[[#This Row],[Période Actuelle ]]/Chiffred’affaires[[#This Row],[Budget]]-1,0)","v":-9.9999999999999978E-2}]
[null,"Produit/service 2",null,null,null,null,null,{"$f":"IFERROR(Chiffred’affaires[[#This Row],[Période Actuelle ]]/SUBTOTAL(109,Chiffred’affaires[[Période Actuelle ]]),0)","v":0},{"$f":"IFERROR(Chiffred’affaires[[#This Row],[Période Actuelle ]]/Chiffred’affaires[[#This Row],[Période Antérieure ]]-1,0)","v":0},{"$f":"IFERROR(Chiffred’affaires[[#This Row],[Période Actuelle ]]/Chiffred’affaires[[#This Row],[Budget]]-1,0)","v":0}]
[null,"Produit/service 3",null,null,null,null,null,{"$f":"IFERROR(Chiffred’affaires[[#This Row],[Période Actuelle ]]/SUBTOTAL(109,Chiffred’affaires[[Période Actuelle ]]),0)","v":0},{"$f":"IFERROR(Chiffred’affaires[[#This Row],[Période Actuelle ]]/Chiffred’affaires[[#This Row],[Période Antérieure ]]-1,0)","v":0},{"$f":"IFERROR(Chiffred’affaires[[#This Row],[Période Actuelle ]]/Chiffred’affaires[[#This Row],[Budget]]-1,0)","v":0}]
[null,"Produit/service 4",null,null,null,null,null,{"$f":"IFERROR(Chiffred’affaires[[#This Row],[Période Actuelle ]]/SUBTOTAL(109,Chiffred’affaires[[Période Actuelle ]]),0)","v":0},{"$f":"IFERROR(Chiffred’affaires[[#This Row],[Période Actuelle ]]/Chiffred’affaires[[#This Row],[Période Antérieure ]]-1,0)","v":0},{"$f":"IFERROR(Chiffred’affaires[[#This Row],[Période Actuelle ]]/Chiffred’affaires[[#This Row],[Budget]]-1,0)","v":0}]
[null,"Total",null,{"$f":"SUBTOTAL(109,Chiffred’affaires[[Période Antérieure ]])","v":40},{"$f":"SUBTOTAL(109,Chiffred’affaires[Budget])","v":50},{"$f":"SUBTOTAL(109,Chiffred’affaires[[Période Actuelle ]])","v":45},null,{"$f":"IFERROR(Chiffred’affaires[[#Totals],[Période Actuelle ]]/Chiffred’affaires[[#Totals],[Période Actuelle ]],0)","v":1},{"$f":"IFERROR(Chiffred’affaires[[#Totals],[Période Actuelle ]]/Chiffred’affaires[[#Totals],[Période Antérieure ]]-1,0)","v":0.125},{"$f":"IFERROR(Chiffred’affaires[[#Totals],[Période Actuelle ]]/Chiffred’affaires[[#Totals],[Budget]]-1,0)","v":-9.9999999999999978E-2}]
[]
[null,"Coût des ventes"]
[]
[null,"Produit/service 1",null,null,2,3,null,{"$f":"IFERROR(Coûtdesventes[[#This Row],[Période Actuelle ]]/SUBTOTAL(109,Chiffred’affaires[[Période Actuelle ]]),0)","v":6.6666666666666666E-2},{"$f":"IFERROR(Coûtdesventes[[#This Row],[Période Actuelle ]]/Coûtdesventes[[#This Row],[Période Antérieure ]]-1,0)","v":0},{"$f":"IFERROR(Coûtdesventes[[#This Row],[Période Actuelle ]]/Coûtdesventes[[#This Row],[Budget]]-1,0)","v":0.5}]
[null,"Produit/service 2",null,null,5,3,null,{"$f":"IFERROR(Coûtdesventes[[#This Row],[Période Actuelle ]]/SUBTOTAL(109,Chiffred’affaires[[Période Actuelle ]]),0)","v":6.6666666666666666E-2},{"$f":"IFERROR(Coûtdesventes[[#This Row],[Période Actuelle ]]/Coûtdesventes[[#This Row],[Période Antérieure ]]-1,0)","v":0},{"$f":"IFERROR(Coûtdesventes[[#This Row],[Période Actuelle ]]/Coûtdesventes[[#This Row],[Budget]]-1,0)","v":-0.4}]
[null,"Produit/service 3",null,null,null,1,null,{"$f":"IFERROR(Coûtdesventes[[#This Row],[Période Actuelle ]]/SUBTOTAL(109,Chiffred’affaires[[Période Actuelle ]]),0)","v":2.2222222222222223E-2},{"$f":"IFERROR(Coûtdesventes[[#This Row],[Période Actuelle ]]/Coûtdesventes[[#This Row],[Période Antérieure ]]-1,0)","v":0},{"$f":"IFERROR(Coûtdesventes[[#This Row],[Période Actuelle ]]/Coûtdesventes[[#This Row],[Budget]]-1,0)","v":0}]
[null,"Produit/service 4",null,null,null,null,null,{"$f":"IFERROR(Coûtdesventes[[#This Row],[Période Actuelle ]]/SUBTOTAL(109,Chiffred’affaires[[Période Actuelle ]]),0)","v":0},{"$f":"IFERROR(Coûtdesventes[[#This Row],[Période Actuelle ]]/Coûtdesventes[[#This Row],[Période Antérieure ]]-1,0)","v":0},{"$f":"IFERROR(Coûtdesventes[[#This Row],[Période Actuelle ]]/Coûtdesventes[[#This Row],[Budget]]-1,0)","v":0}]
[null,"Total",null,{"$f":"SUBTOTAL(109,Coûtdesventes[[Période Antérieure ]])","v":0},{"$f":"SUBTOTAL(109,Coûtdesventes[Budget])","v":7},{"$f":"SUBTOTAL(109,Coûtdesventes[[Période Actuelle ]])","v":7},null,{"$f":"IFERROR(Coûtdesventes[[#Totals],[Période Actuelle ]]/SUBTOTAL(109,Chiffred’affaires[[Période Actuelle ]]),0)","v":0.15555555555555556},{"$f":"IFERROR(Coûtdesventes[[#Totals],[Période Actuelle ]]/Coûtdesventes[[#Totals],[Période Antérieure ]]-1,0)","v":0},{"$f":"IFERROR(Coûtdesventes[[#Totals],[Période Actuelle ]]/Coûtdesventes[[#Totals],[Budget]]-1,0)","v":0}]
[]
[null,"Marge brute",null,{"$f":"SUM(Chiffred’affaires[[Période Antérieure ]])-SUM(Coûtdesventes[[Période Antérieure ]])","v":40},{"$f":"SUM(Chiffred’affaires[Budget])-SUM(Coûtdesventes[Budget])","v":43},{"$f":"SUM(Chiffred’affaires[[Période Actuelle ]])-SUM(Coûtdesventes[[Période Actuelle ]])","v":38},null,{"$f":"IFERROR(F20/SUBTOTAL(109,Chiffred’affaires[[Période Actuelle ]]),0)","v":0.84444444444444444},{"$f":"IFERROR(F20/D20-1,0)","v":-5.0000000000000044E-2},{"$f":"IFERROR(F20/E20-1,0)","v":-0.11627906976744184}]
[]
[null,"Charges d’exploitation : ventes et marketing"]
[]
[null,"Publicité",null,null,22,19,null,{"$f":"IFERROR(ventesetmarketing[[#This Row],[Période Actuelle ]]/SUBTOTAL(109,Chiffred’affaires[[Période Actuelle ]]),0)","v":0.42222222222222222},{"$f":"IFERROR(ventesetmarketing[[#This Row],[Période Actuelle ]]/ventesetmarketing[[#This Row],[Période Antérieure ]]-1,0)","v":0},{"$f":"IFERROR(ventesetmarketing[[#This Row],[Période Actuelle ]]/ventesetmarketing[[#This Row],[Budget]]-1,0)","v":-0.13636363636363635}]
[null,"Marketing direct",null,null,null,null,null,{"$f":"IFERROR(ventesetmarketing[[#This Row],[Période Actuelle ]]/SUBTOTAL(109,Chiffred’affaires[[Période Actuelle ]]),0)","v":0},{"$f":"IFERROR(ventesetmarketing[[#This Row],[Période Actuelle ]]/ventesetmarketing[[#This Row],[Période Antérieure ]]-1,0)","v":0},{"$f":"IFERROR(ventesetmarketing[[#This Row],[Période Actuelle ]]/ventesetmarketing[[#This Row],[Budget]]-1,0)","v":0}]
[null,"Autres dépenses (préciser)",null,null,null,null,null,{"$f":"IFERROR(ventesetmarketing[[#This Row],[Période Actuelle ]]/SUBTOTAL(109,Chiffred’affaires[[Période Actuelle ]]),0)","v":0},{"$f":"IFERROR(ventesetmarketing[[#This Row],[Période Actuelle ]]/ventesetmarketing[[#This Row],[Période Antérieure ]]-1,0)","v":0},{"$f":"IFERROR(ventesetmarketing[[#This Row],[Période Actuelle ]]/ventesetmarketing[[#This Row],[Budget]]-1,0)","v":0}]
[null,"Total",null,{"$f":"SUBTOTAL(109,ventesetmarketing[[Période Antérieure ]])","v":0},{"$f":"SUBTOTAL(109,ventesetmarketing[Budget])","v":22},{"$f":"SUBTOTAL(109,ventesetmarketing[[Période Actuelle ]])","v":19},null,{"$f":"IFERROR(ventesetmarketing[[#Totals],[Période Actuelle ]]/SUBTOTAL(109,Chiffred’affaires[[Période Actuelle ]]),0)","v":0.42222222222222222},{"$f":"IFERROR(ventesetmarketing[[#Totals],[Période Actuelle ]]/ventesetmarketing[[#Totals],[Période Antérieure ]]-1,0)","v":0},{"$f":"IFERROR(ventesetmarketing[[#Totals],[Période Actuelle ]]/ventesetmarketing[[#Totals],[Budget]]-1,0)","v":-0.13636363636363635}]
[]
[null,"Charges d’exploitation : frais généraux et administratifs"]
[]
[null,"Salaires et traitements",null,null,56,51,null,{"$f":"IFERROR(fraisgénérauxetadministratifs[[#This Row],[Période Actuelle ]]/SUBTOTAL(109,Chiffred’affaires[[Période Actuelle ]]),0)","v":1.1333333333333333},{"$f":"IFERROR(fraisgénérauxetadministratifs[[#This Row],[Période Actuelle ]]/fraisgénérauxetadministratifs[[#This Row],[Période Antérieure ]]-1,0)","v":0},{"$f":"IFERROR(fraisgénérauxetadministratifs[[#This Row],[Période Actuelle ]]/fraisgénérauxetadministratifs[[#This Row],[Budget]]-1,0)","v":-8.9285714285714302E-2}]
[null,"Services extérieurs",null,null,null,null,null,{"$f":"IFERROR(fraisgénérauxetadministratifs[[#This Row],[Période Actuelle ]]/SUBTOTAL(109,Chiffred’affaires[[Période Actuelle ]]),0)","v":0},{"$f":"IFERROR(fraisgénérauxetadministratifs[[#This Row],[Période Actuelle ]]/fraisgénérauxetadministratifs[[#This Row],[Période Antérieure ]]-1,0)","v":0},{"$f":"IFERROR(fraisgénérauxetadministratifs[[#This Row],[Période Actuelle ]]/fraisgénérauxetadministratifs[[#This Row],[Budget]]-1,0)","v":0}]
[null,"Fournitures",null,null,null,null,null,{"$f":"IFERROR(fraisgénérauxetadministratifs[[#This Row],[Période Actuelle ]]/SUBTOTAL(109,Chiffred’affaires[[Période Actuelle ]]),0)","v":0},{"$f":"IFERROR(fraisgénérauxetadministratifs[[#This Row],[Période Actuelle ]]/fraisgénérauxetadministratifs[[#This Row],[Période Antérieure ]]-1,0)","v":0},{"$f":"IFERROR(fraisgénérauxetadministratifs[[#This Row],[Période Actuelle ]]/fraisgénérauxetadministratifs[[#This Row],[Budget]]-1,0)","v":0}]
[null,"Repas et divertissements",null,null,null,null,null,{"$f":"IFERROR(fraisgénérauxetadministratifs[[#This Row],[Période Actuelle ]]/SUBTOTAL(109,Chiffred’affaires[[Période Actuelle ]]),0)","v":0},{"$f":"IFERROR(fraisgénérauxetadministratifs[[#This Row],[Période Actuelle ]]/fraisgénérauxetadministratifs[[#This Row],[Période Antérieure ]]-1,0)","v":0},{"$f":"IFERROR(fraisgénérauxetadministratifs[[#This Row],[Période Actuelle ]]/fraisgénérauxetadministratifs[[#This Row],[Budget]]-1,0)","v":0}]
[null,"Location",null,null,null,null,null,{"$f":"IFERROR(fraisgénérauxetadministratifs[[#This Row],[Période Actuelle ]]/SUBTOTAL(109,Chiffred’affaires[[Période Actuelle ]]),0)","v":0},{"$f":"IFERROR(fraisgénérauxetadministratifs[[#This Row],[Période Actuelle ]]/fraisgénérauxetadministratifs[[#This Row],[Période Antérieure ]]-1,0)","v":0},{"$f":"IFERROR(fraisgénérauxetadministratifs[[#This Row],[Période Actuelle ]]/fraisgénérauxetadministratifs[[#This Row],[Budget]]-1,0)","v":0}]
[null,"Téléphone",null,null,null,null,null,{"$f":"IFERROR(fraisgénérauxetadministratifs[[#This Row],[Période Actuelle ]]/SUBTOTAL(109,Chiffred’affaires[[Période Actuelle ]]),0)","v":0},{"$f":"IFERROR(fraisgénérauxetadministratifs[[#This Row],[Période Actuelle ]]/fraisgénérauxetadministratifs[[#This Row],[Période Antérieure ]]-1,0)","v":0},{"$f":"IFERROR(fraisgénérauxetadministratifs[[#This Row],[Période Actuelle ]]/fraisgénérauxetadministratifs[[#This Row],[Budget]]-1,0)","v":0}]
[null,"Services",null,null,null,null,null,{"$f":"IFERROR(fraisgénérauxetadministratifs[[#This Row],[Période Actuelle ]]/SUBTOTAL(109,Chiffred’affaires[[Période Actuelle ]]),0)","v":0},{"$f":"IFERROR(fraisgénérauxetadministratifs[[#This Row],[Période Actuelle ]]/fraisgénérauxetadministratifs[[#This Row],[Période Antérieure ]]-1,0)","v":0},{"$f":"IFERROR(fraisgénérauxetadministratifs[[#This Row],[Période Actuelle ]]/fraisgénérauxetadministratifs[[#This Row],[Budget]]-1,0)","v":0}]
[null,"Dépréciation",null,null,null,null,null,{"$f":"IFERROR(fraisgénérauxetadministratifs[[#This Row],[Période Actuelle ]]/SUBTOTAL(109,Chiffred’affaires[[Période Actuelle ]]),0)","v":0},{"$f":"IFERROR(fraisgénérauxetadministratifs[[#This Row],[Période Actuelle ]]/fraisgénérauxetadministratifs[[#This Row],[Période Antérieure ]]-1,0)","v":0},{"$f":"IFERROR(fraisgénérauxetadministratifs[[#This Row],[Période Actuelle ]]/fraisgénérauxetadministratifs[[#This Row],[Budget]]-1,0)","v":0}]
[null,"Assurance",null,null,null,null,null,{"$f":"IFERROR(fraisgénérauxetadministratifs[[#This Row],[Période Actuelle ]]/SUBTOTAL(109,Chiffred’affaires[[Période Actuelle ]]),0)","v":0},{"$f":"IFERROR(fraisgénérauxetadministratifs[[#This Row],[Période Actuelle ]]/fraisgénérauxetadministratifs[[#This Row],[Période Antérieure ]]-1,0)","v":0},{"$f":"IFERROR(fraisgénérauxetadministratifs[[#This Row],[Période Actuelle ]]/fraisgénérauxetadministratifs[[#This Row],[Budget]]-1,0)","v":0}]
[null,"Réparations et entretien",null,null,null,null,null,{"$f":"IFERROR(fraisgénérauxetadministratifs[[#This Row],[Période Actuelle ]]/SUBTOTAL(109,Chiffred’affaires[[Période Actuelle ]]),0)","v":0},{"$f":"IFERROR(fraisgénérauxetadministratifs[[#This Row],[Période Actuelle ]]/fraisgénérauxetadministratifs[[#This Row],[Période Antérieure ]]-1,0)","v":0},{"$f":"IFERROR(fraisgénérauxetadministratifs[[#This Row],[Période Actuelle ]]/fraisgénérauxetadministratifs[[#This Row],[Budget]]-1,0)","v":0}]
[null,"Autres dépenses (préciser)",null,null,null,null,null,{"$f":"IFERROR(fraisgénérauxetadministratifs[[#This Row],[Période Actuelle ]]/SUBTOTAL(109,Chiffred’affaires[[Période Actuelle ]]),0)","v":0},{"$f":"IFERROR(fraisgénérauxetadministratifs[[#This Row],[Période Actuelle ]]/fraisgénérauxetadministratifs[[#This Row],[Période Antérieure ]]-1,0)","v":0},{"$f":"IFERROR(fraisgénérauxetadministratifs[[#This Row],[Période Actuelle ]]/fraisgénérauxetadministratifs[[#This Row],[Budget]]-1,0)","v":0}]
[null,"Total",null,{"$f":"SUBTOTAL(109,fraisgénérauxetadministratifs[[Période Antérieure ]])","v":0},{"$f":"SUBTOTAL(109,fraisgénérauxetadministratifs[Budget])","v":56},{"$f":"SUBTOTAL(109,fraisgénérauxetadministratifs[[Période Actuelle ]])","v":51},null,{"$f":"IFERROR(fraisgénérauxetadministratifs[[#Totals],[Période Actuelle ]]/SUBTOTAL(109,Chiffred’affaires[[Période Actuelle ]]),0)","v":1.1333333333333333},{"$f":"IFERROR(fraisgénérauxetadministratifs[[#Totals],[Période Actuelle ]]/fraisgénérauxetadministratifs[[#Totals],[Période Antérieure ]]-1,0)","v":0},{"$f":"IFERROR(fraisgénérauxetadministratifs[[#Totals],[Période Actuelle ]]/fraisgénérauxetadministratifs[[#Totals],[Budget]]-1,0)","v":-8.9285714285714302E-2}]
[]
[null,"Charges d’exploitation : autres"]
[]
[null,"Autres charges d’exploitation 1",null,null,10,null,null,{"$f":"IFERROR(AutresCatégoriedeschargesd’exploitation[[#This Row],[Période Actuelle ]]/SUBTOTAL(109,Chiffred’affaires[[Période Actuelle ]]),0)","v":0},{"$f":"IFERROR(AutresCatégoriedeschargesd’exploitation[[#This Row],[Période Actuelle ]]/AutresCatégoriedeschargesd’exploitation[[#This Row],[Période Antérieure ]]-1,0)","v":0},{"$f":"IFERROR(AutresCatégoriedeschargesd’exploitation[[#This Row],[Période Actuelle ]]/AutresCatégoriedeschargesd’exploitation[[#This Row],[Budget]]-1,0)","v":-1}]
[null,"Autres charges d’exploitation 2",null,null,null,null,null,{"$f":"IFERROR(AutresCatégoriedeschargesd’exploitation[[#This Row],[Période Actuelle ]]/SUBTOTAL(109,Chiffred’affaires[[Période Actuelle ]]),0)","v":0},{"$f":"IFERROR(AutresCatégoriedeschargesd’exploitation[[#This Row],[Période Actuelle ]]/AutresCatégoriedeschargesd’exploitation[[#This Row],[Période Antérieure ]]-1,0)","v":0},{"$f":"IFERROR(AutresCatégoriedeschargesd’exploitation[[#This Row],[Période Actuelle ]]/AutresCatégoriedeschargesd’exploitation[[#This Row],[Budget]]-1,0)","v":0}]
[null,"Total",null,{"$f":"SUBTOTAL(109,AutresCatégoriedeschargesd’exploitation[[Période Antérieure ]])","v":0},{"$f":"SUBTOTAL(109,AutresCatégoriedeschargesd’exploitation[Budget])","v":10},{"$f":"SUBTOTAL(109,AutresCatégoriedeschargesd’exploitation[[Période Actuelle ]])","v":0},null,{"$f":"IFERROR(AutresCatégoriedeschargesd’exploitation[[#Totals],[Période Actuelle ]]/SUBTOTAL(109,Chiffred’affaires[[Période Actuelle ]]),0)","v":0},{"$f":"IFERROR(AutresCatégoriedeschargesd’exploitation[[#Totals],[Période Actuelle ]]/AutresCatégoriedeschargesd’exploitation[[#Totals],[Période Antérieure ]]-1,0)","v":0},{"$f":"IFERROR(AutresCatégoriedeschargesd’exploitation[[#Totals],[Période Actuelle ]]/AutresCatégoriedeschargesd’exploitation[[#Totals],[Budget]]-1,0)","v":-1}]
[]
[null,"Total des charges d’exploitation",null,{"$f":"SUM(ventesetmarketing[[Période Antérieure ]],fraisgénérauxetadministratifs[[Période Antérieure ]],AutresCatégoriedeschargesd’exploitation[[Période Antérieure ]])","v":0},{"$f":"SUM(ventesetmarketing[Budget],fraisgénérauxetadministratifs[Budget],AutresCatégoriedeschargesd’exploitation[Budget])","v":88},{"$f":"SUM(ventesetmarketing[[Période Actuelle ]],fraisgénérauxetadministratifs[[Période Actuelle ]],AutresCatégoriedeschargesd’exploitation[[Période Actuelle ]])","v":70},null,{"$f":"IFERROR(F50/SUBTOTAL(109,Chiffred’affaires[[Période Actuelle ]]),0)","v":1.5555555555555556},{"$f":"IFERROR(F50/D50-1,0)","v":0},{"$f":"IFERROR(F50/E50-1,0)","v":-0.20454545454545459}]
[]
[null,"Résultat d’exploitation",null,{"$f":"D20-D50","v":40},{"$f":"E20-E50","v":-45},{"$f":"F20-F50","v":-32},null,{"$f":"IFERROR(F52/SUBTOTAL(109,Chiffred’affaires[[Période Actuelle ]]),0)","v":-0.71111111111111114},{"$f":"IFERROR(IF(D52=F52,0,IF(F52>D52,ABS((F52/D52)-1),IF(AND(F52<D52,D52<0),-((F52/D52)-1),(F52/D52)-1))),0)","v":-1.8},{"$f":"IFERROR(IF(E52=F52,0,IF(F52>E52,ABS((F52/E52)-1),IF(AND(F52<E52,E52<0),-((F52/E52)-1),(F52/E52)-1))),0)","v":0.28888888888888886}]
[]
[null,"Autre revenu",null,null,null,null,null,{"$f":"IFERROR(F54/SUBTOTAL(109,Chiffred’affaires[[Période Actuelle ]]),0)","v":0},{"$f":"IFERROR(F54/D54-1,0)","v":0},{"$f":"IFERROR(F54/E54-1,0)","v":0}]
[]
[null,"Taxes"]
[]
[null,"Impôts sur le revenu",null,null,32,30,null,{"$f":"IFERROR(Taxes[[#This Row],[Période Actuelle ]]/SUBTOTAL(109,Chiffred’affaires[[Période Actuelle ]]),0)","v":0.66666666666666663},{"$f":"IFERROR(Taxes[[#This Row],[Période Actuelle ]]/Taxes[[#This Row],[Période Antérieure ]]-1,0)","v":0},{"$f":"IFERROR(Taxes[[#This Row],[Période Actuelle ]]/Taxes[[#This Row],[Budget]]-1,0)","v":-6.25E-2}]
[null,"Charges sociales",null,null,null,null,null,{"$f":"IFERROR(Taxes[[#This Row],[Période Actuelle ]]/SUBTOTAL(109,Chiffred’affaires[[Période Actuelle ]]),0)","v":0},{"$f":"IFERROR(Taxes[[#This Row],[Période Actuelle ]]/Taxes[[#This Row],[Période Antérieure ]]-1,0)","v":0},{"$f":"IFERROR(Taxes[[#This Row],[Période Actuelle ]]/Taxes[[#This Row],[Budget]]-1,0)","v":0}]
[null,"Taxes foncières",null,null,null,null,null,{"$f":"IFERROR(Taxes[[#This Row],[Période Actuelle ]]/SUBTOTAL(109,Chiffred’affaires[[Période Actuelle ]]),0)","v":0},{"$f":"IFERROR(Taxes[[#This Row],[Période Actuelle ]]/Taxes[[#This Row],[Période Antérieure ]]-1,0)","v":0},{"$f":"IFERROR(Taxes[[#This Row],[Période Actuelle ]]/Taxes[[#This Row],[Budget]]-1,0)","v":0}]
[null,"Autres taxes (préciser)",null,null,null,null,null,{"$f":"IFERROR(Taxes[[#This Row],[Période Actuelle ]]/SUBTOTAL(109,Chiffred’affaires[[Période Actuelle ]]),0)","v":0},{"$f":"IFERROR(Taxes[[#This Row],[Période Actuelle ]]/Taxes[[#This Row],[Période Antérieure ]]-1,0)","v":0},{"$f":"IFERROR(Taxes[[#This Row],[Période Actuelle ]]/Taxes[[#This Row],[Budget]]-1,0)","v":0}]
[null,"Total",null,{"$f":"SUBTOTAL(109,Taxes[[Période Antérieure ]])","v":0},{"$f":"SUBTOTAL(109,Taxes[Budget])","v":32},{"$f":"SUBTOTAL(109,Taxes[[Période Actuelle ]])","v":30},null,{"$f":"IFERROR(Taxes[[#Totals],[Période Actuelle ]]/SUBTOTAL(109,Chiffred’affaires[[Période Actuelle ]]),0)","v":0.66666666666666663},{"$f":"IFERROR(Taxes[[#Totals],[Période Actuelle ]]/Taxes[[#Totals],[Période Antérieure ]]-1,0)","v":0},{"$f":"IFERROR(Taxes[[#Totals],[Période Actuelle ]]/Taxes[[#Totals],[Budget]]-1,0)","v":-6.25E-2}]
[]
[null,"Bénéfice net",null,{"$f":"D52+D54-Taxes[[#Totals],[Période Antérieure ]]","v":40},{"$f":"E52+E54-Taxes[[#Totals],[Période Antérieure ]]","v":-45},{"$f":"F52+F54-Taxes[[#Totals],[Période Antérieure ]]","v":-32},null,{"$f":"IFERROR(F64/SUBTOTAL(109,Chiffred’affaires[[Période Actuelle ]]),0)","v":-0.71111111111111114},{"$f":"IFERROR(IF(D64=F64,0,IF(F64>D64,ABS((F64/D64)-1),IF(AND(F64<D64,D64<0),-((F64/D64)-1),(F64/D64)-1))),0)","v":-1.8},{"$f":"IFERROR(IF(E64=F64,0,IF(F64>E64,ABS((F64/E64)-1),IF(AND(F64<E64,E64<0),-((F64/E64)-1),(F64/E64)-1))),0)","v":0.28888888888888886}]
[null,"Marge brute",null,{"$f":"D20/SUM(Chiffred’affaires[[Période Antérieure ]])","v":1},{"$f":"E20/SUM(Chiffred’affaires[Budget])","v":0.86},{"$f":"F20/SUM(Chiffred’affaires[[Période Actuelle ]])","v":0.84444444444444444}]
[null,"Taux de rentabilité opérationnelle",null,{"$f":"D64/SUM(Chiffred’affaires[[Période Antérieure ]])","v":1},{"$f":"E64/SUM(Chiffred’affaires[Budget])","v":-0.9},{"$f":"F64/SUM(Chiffred’affaires[[Période Actuelle ]])","v":-0.71111111111111114}]